[Event "Titled Tuesday Blitz March 01 Early 2022"]
[White "Wachinger, Guenther"]
[Black "Matveeva, Olga"]
[WhiteFideId "4604261"]
[BlackFideId "24107018"]
[WhiteElo "2212"]
[BlackElo "2083"]
[Result "0-1"]
[Round "06"]
[TimeControl "180+1"]
[Date "2022.03.01"]
[WhiteClock "0:01:26"]
[BlackClock "0:00:56"]

1. e4 {[%clk 0:03:00]}  e6 {[%clk 0:02:59]} 2. d4 {[%clk 0:02:58]}  d5 {[%clk 0:02:59]} 3. Nd2 {[%clk 0:02:56]}  c5 {[%clk 0:02:58]} 4. exd5 {[%clk 0:02:54]}  Qxd5 {[%clk 0:02:59]} 5. Ngf3 {[%clk 0:02:53]}  cxd4 {[%clk 0:02:58]} 6. Bc4 {[%clk 0:02:52]}  Qd6 {[%clk 0:02:58]} 7. O-O {[%clk 0:02:51]}  Nf6 {[%clk 0:02:59]} 8. Nb3 {[%clk 0:02:50]}  Nc6 {[%clk 0:02:59]} 9. Nbxd4 {[%clk 0:02:49]}  Nxd4 {[%clk 0:03:00]} 10. Nxd4 {[%clk 0:02:50]}  a6 {[%clk 0:03:00]} 11. Re1 {[%clk 0:02:48]}  Qc7 {[%clk 0:02:59]} 12. Bb3 {[%clk 0:02:45]}  Bd7 {[%clk 0:02:57]} 13. Bg5 {[%clk 0:02:38]}  Bd6 {[%clk 0:02:54]} 14. Nf5 {[%clk 0:02:35]}  Bxh2+ {[%clk 0:02:49]} 15. Kh1 {[%clk 0:02:35]}  O-O-O {[%clk 0:02:36]} 16. Nxg7 {[%clk 0:02:32]}  Be5 {[%clk 0:02:31]} 17. Qf3 {[%clk 0:02:21]}  Bc6 {[%clk 0:02:27]} 18. Qh3 {[%clk 0:02:19]}  Ne4 {[%clk 0:02:11]} 19. Qh4 {[%clk 0:01:59]}  Nxg5 {[%clk 0:01:32]} 20. Qxg5 {[%clk 0:01:56]}  Bxg7 {[%clk 0:01:21]} 21. Qxg7 {[%clk 0:01:44]}  Rhg8 {[%clk 0:01:16]} 22. Bxe6+ {[%clk 0:01:32]}  fxe6 {[%clk 0:01:10]} 23. Qxc7+ {[%clk 0:01:33]}  Kxc7 {[%clk 0:01:10]} 24. Rxe6 {[%clk 0:01:33]}  Bxg2+ {[%clk 0:01:08]} 25. Kh2 {[%clk 0:01:32]}  Bd5 {[%clk 0:01:05]} 26. Re7+ {[%clk 0:01:31]}  Rd7 {[%clk 0:01:05]} 27. Rxd7+ {[%clk 0:01:31]}  Kxd7 {[%clk 0:01:06]} 28. Rd1 {[%clk 0:01:32]}  Ke6 {[%clk 0:01:06]} 29. b3 {[%clk 0:01:31]}  Rg2+ {[%clk 0:01:04]} 30. Kh3 {[%clk 0:01:31]}  Rxf2 {[%clk 0:01:04]} 31. c4 {[%clk 0:01:31]}  Be4 {[%clk 0:01:02]} 32. Rd8 {[%clk 0:01:29]}  Rxa2 {[%clk 0:00:59]} 33. Re8+ {[%clk 0:01:29]}  Kf5 {[%clk 0:00:59]} 34. Rf8+ {[%clk 0:01:25]}  Ke5 {[%clk 0:00:59]} 35. Re8+ {[%clk 0:01:25]}  Kf4 {[%clk 0:00:59]} 36. Rf8+ {[%clk 0:01:25]}  Bf5+ {[%clk 0:00:57]} 37. Rxf5+ {[%clk 0:01:25]}  Kxf5 {[%clk 0:00:56]} 38. b4 {[%clk 0:01:26]} 0-1


[Site "https://www.chess.com"]

[Event "Titled Tuesday Blitz March 01 Early 2022"]
[White "Wagner, Dennis"]
[Black "Sargsyan, Anna M."]
[WhiteFideId "24650684"]
[BlackFideId "13308130"]
[WhiteElo "2355"]
[BlackElo "2271"]
[Result "0-1"]
[Round "06"]
[TimeControl "180+1"]
[Date "2022.03.01"]
[WhiteClock "0:00:02"]
[BlackClock "0:00:13"]

1. d4 {[%clk 0:03:00]}  d5 {[%clk 0:02:47]} 2. c4 {[%clk 0:03:00]}  c6 {[%clk 0:02:47]} 3. Nf3 {[%clk 0:03:00]}  Nf6 {[%clk 0:02:46]} 4. g3 {[%clk 0:02:54]}  Bf5 {[%clk 0:02:46]} 5. Nc3 {[%clk 0:02:54]}  e6 {[%clk 0:02:47]} 6. Nh4 {[%clk 0:02:54]}  Bg4 {[%clk 0:02:43]} 7. h3 {[%clk 0:02:54]}  Bh5 {[%clk 0:02:42]} 8. g4 {[%clk 0:02:54]}  Nfd7 {[%clk 0:02:39]} 9. Ng2 {[%clk 0:02:45]}  Bg6 {[%clk 0:02:40]} 10. Nf4 {[%clk 0:02:46]}  Bd6 {[%clk 0:02:40]} 11. Nxg6 {[%clk 0:02:45]}  hxg6 {[%clk 0:02:41]} 12. Qb3 {[%clk 0:02:42]}  Na6 {[%clk 0:02:36]} 13. c5 {[%clk 0:02:36]}  Ndxc5 {[%clk 0:02:11]} 14. dxc5 {[%clk 0:02:37]}  Nxc5 {[%clk 0:02:11]} 15. Qc2 {[%clk 0:02:37]}  Qe7 {[%clk 0:02:07]} 16. Bg2 {[%clk 0:02:36]}  O-O-O {[%clk 0:02:05]} 17. b4 {[%clk 0:02:33]}  Nd7 {[%clk 0:02:03]} 18. a3 {[%clk 0:02:17]}  f5 {[%clk 0:02:01]} 19. g5 {[%clk 0:02:03]}  Kb8 {[%clk 0:02:01]} 20. Bd2 {[%clk 0:02:01]}  e5 {[%clk 0:02:00]} 21. b5 {[%clk 0:01:56]}  d4 {[%clk 0:01:52]} 22. bxc6 {[%clk 0:01:24]}  dxc3 {[%clk 0:01:50]} 23. Qxc3 {[%clk 0:01:25]}  Nb6 {[%clk 0:01:28]} 24. a4 {[%clk 0:01:01]}  e4 {[%clk 0:01:27]} 25. a5 {[%clk 0:00:49]}  Nd5 {[%clk 0:01:27]} 26. Qb3 {[%clk 0:00:47]}  Bb4 {[%clk 0:01:27]} 27. Rd1 {[%clk 0:00:18]}  Bxd2+ {[%clk 0:01:17]} 28. Rxd2 {[%clk 0:00:19]}  Qb4 {[%clk 0:01:16]} 29. Qxb4 {[%clk 0:00:14]}  Nxb4 {[%clk 0:01:17]} 30. cxb7 {[%clk 0:00:13]}  Kxb7 {[%clk 0:01:13]} 31. f3 {[%clk 0:00:12]}  Rxd2 {[%clk 0:00:59]} 32. Kxd2 {[%clk 0:00:13]}  Rd8+ {[%clk 0:00:57]} 33. Ke3 {[%clk 0:00:12]}  Nd5+ {[%clk 0:00:50]} 34. Kf2 {[%clk 0:00:12]}  e3+ {[%clk 0:00:50]} 35. Kg3 {[%clk 0:00:12]}  Nc3 {[%clk 0:00:34]} 36. f4+ {[%clk 0:00:12]}  Ka6 {[%clk 0:00:34]} 37. Kf3 {[%clk 0:00:11]}  Kxa5 {[%clk 0:00:34]} 38. Ra1+ {[%clk 0:00:10]}  Kb6 {[%clk 0:00:32]} 39. Kxe3 {[%clk 0:00:10]}  Re8+ {[%clk 0:00:29]} 40. Kd3 {[%clk 0:00:10]}  Nxe2 {[%clk 0:00:29]} 41. Rb1+ {[%clk 0:00:09]}  Kc5 {[%clk 0:00:28]} 42. Rf1 {[%clk 0:00:07]}  a5 {[%clk 0:00:28]} 43. Kd2 {[%clk 0:00:04]}  a4 {[%clk 0:00:18]} 44. Rf3 {[%clk 0:00:04]}  Kb4 {[%clk 0:00:13]} 45. Bf1 {[%clk 0:00:03]}  Nd4 {[%clk 0:00:12]} 46. Rd3 {[%clk 0:00:02]}  Nb3+ {[%clk 0:00:12]} 47. Kc2 {[%clk 0:00:02]}  Re1 {[%clk 0:00:13]} 48. Rf3 {[%clk 0:00:01]}  Rc1+ {[%clk 0:00:12]} 49. Kb2 {[%clk 0:00:01]}  a3+ {[%clk 0:00:12]} 50. Ka2 {[%clk 0:00:02]}  Ra1# {[%clk 0:00:13]} 0-1


[Site "https://www.chess.com"]

[Event "Titled Tuesday Blitz March 01 Early 2022"]
[White "Winkels, Marcel"]
[Black "Putri, Regita Desyari"]
[WhiteFideId "1003887"]
[BlackFideId "7109083"]
[WhiteElo "1900"]
[BlackElo "1930"]
[Result "0-1"]
[Round "06"]
[TimeControl "180+1"]
[Date "2022.03.01"]
[WhiteClock "0:00:03"]
[BlackClock "0:00:21"]

1. b3 {[%clk 0:03:00]}  d5 {[%clk 0:02:58]} 2. Bb2 {[%clk 0:03:00]}  Nf6 {[%clk 0:02:58]} 3. e3 {[%clk 0:03:01]}  Bf5 {[%clk 0:02:57]} 4. Nf3 {[%clk 0:03:01]}  e6 {[%clk 0:02:57]} 5. d3 {[%clk 0:03:01]}  h6 {[%clk 0:02:55]} 6. Be2 {[%clk 0:03:00]}  Be7 {[%clk 0:02:54]} 7. Nbd2 {[%clk 0:02:59]}  O-O {[%clk 0:02:54]} 8. O-O {[%clk 0:02:51]}  c6 {[%clk 0:02:54]} 9. c4 {[%clk 0:02:49]}  Nbd7 {[%clk 0:02:53]} 10. Rc1 {[%clk 0:02:47]}  Bh7 {[%clk 0:02:52]} 11. Ne5 {[%clk 0:02:45]}  Nxe5 {[%clk 0:02:48]} 12. Bxe5 {[%clk 0:02:44]}  Nd7 {[%clk 0:02:49]} 13. Ba1 {[%clk 0:02:43]}  Bf6 {[%clk 0:02:43]} 14. Bxf6 {[%clk 0:02:39]}  Qxf6 {[%clk 0:02:43]} 15. Bf3 {[%clk 0:02:35]}  Bxd3 {[%clk 0:02:41]} 16. Re1 {[%clk 0:02:35]}  Bg6 {[%clk 0:02:41]} 17. e4 {[%clk 0:02:34]}  dxc4 {[%clk 0:02:34]} 18. Nxc4 {[%clk 0:02:31]}  Rfd8 {[%clk 0:02:33]} 19. Qe2 {[%clk 0:02:30]}  Ne5 {[%clk 0:02:32]} 20. Nxe5 {[%clk 0:02:21]}  Qxe5 {[%clk 0:02:33]} 21. g3 {[%clk 0:02:19]}  Rd7 {[%clk 0:02:26]} 22. Bg2 {[%clk 0:02:07]}  Rad8 {[%clk 0:02:26]} 23. Qe3 {[%clk 0:01:47]}  Qd4 {[%clk 0:02:22]} 24. Qf4 {[%clk 0:01:36]}  e5 {[%clk 0:02:11]} 25. Qh4 {[%clk 0:01:34]}  Qb2 {[%clk 0:02:00]} 26. a4 {[%clk 0:01:22]}  Rd2 {[%clk 0:01:58]} 27. g4 {[%clk 0:01:21]}  Qxb3 {[%clk 0:01:38]} 28. Rb1 {[%clk 0:01:20]}  Qc4 {[%clk 0:01:28]} 29. Rxb7 {[%clk 0:01:09]}  Rd1 {[%clk 0:01:26]} 30. f3 {[%clk 0:01:00]}  Qc5+ {[%clk 0:01:14]} 31. Kf1 {[%clk 0:00:49]}  Qc2 {[%clk 0:01:01]} 32. Rb1 {[%clk 0:00:25]}  Kh7 {[%clk 0:00:32]} 33. Rbxd1 {[%clk 0:00:19]}  Rxd1 {[%clk 0:00:33]} 34. Rxd1 {[%clk 0:00:18]}  Qxd1+ {[%clk 0:00:34]} 35. Qe1 {[%clk 0:00:18]}  Qxa4 {[%clk 0:00:34]} 36. Qc3 {[%clk 0:00:16]}  f6 {[%clk 0:00:29]} 37. Qc5 {[%clk 0:00:14]}  Qb5+ {[%clk 0:00:29]} 38. Qxb5 {[%clk 0:00:13]}  cxb5 {[%clk 0:00:30]} 39. Ke1 {[%clk 0:00:13]}  a5 {[%clk 0:00:30]} 40. Kd2 {[%clk 0:00:13]}  Bf7 {[%clk 0:00:30]} 41. Kc3 {[%clk 0:00:13]}  Kg6 {[%clk 0:00:30]} 42. Bf1 {[%clk 0:00:13]}  Be8 {[%clk 0:00:31]} 43. h4 {[%clk 0:00:10]}  Kf7 {[%clk 0:00:25]} 44. Kb3 {[%clk 0:00:09]}  Ke6 {[%clk 0:00:25]} 45. Kc3 {[%clk 0:00:08]}  Kd6 {[%clk 0:00:25]} 46. Bd3 {[%clk 0:00:08]}  Kc5 {[%clk 0:00:25]} 47. Bc2 {[%clk 0:00:08]}  b4+ {[%clk 0:00:25]} 48. Kb2 {[%clk 0:00:07]}  a4 {[%clk 0:00:25]} 49. Bb1 {[%clk 0:00:04]}  Bb5 {[%clk 0:00:21]} 50. Bc2 {[%clk 0:00:03]}  a3+ {[%clk 0:00:21]} 0-1


[Site "https://www.chess.com"]

[Event "Titled Tuesday Blitz March 01 Early 2022"]
[White "Zanette, Edgard Vinicius"]
[Black "Stepanencu, Nicodim-Cosmin"]
[WhiteFideId "2109263"]
[BlackFideId "1256220"]
[WhiteElo "2182"]
[BlackElo "1809"]
[Result "1-0"]
[Round "06"]
[TimeControl "180+1"]
[Date "2022.03.01"]
[WhiteClock "0:01:01"]
[BlackClock "0:00:35"]

1. e4 {[%clk 0:02:56]}  e6 {[%clk 0:02:51]} 2. d4 {[%clk 0:02:56]}  b6 {[%clk 0:02:51]} 3. Nc3 {[%clk 0:02:53]}  Bb7 {[%clk 0:02:51]} 4. Nf3 {[%clk 0:02:48]}  Bb4 {[%clk 0:02:49]} 5. Bd3 {[%clk 0:02:48]}  Nf6 {[%clk 0:02:49]} 6. Qe2 {[%clk 0:02:48]}  d5 {[%clk 0:02:49]} 7. e5 {[%clk 0:02:45]}  Ne4 {[%clk 0:02:49]} 8. Bd2 {[%clk 0:02:42]}  Bxc3 {[%clk 0:02:45]} 9. bxc3 {[%clk 0:02:40]}  c5 {[%clk 0:02:45]} 10. O-O {[%clk 0:02:35]}  h6 {[%clk 0:02:37]} 11. Bb5+ {[%clk 0:02:03]}  Nd7 {[%clk 0:02:31]} 12. c4 {[%clk 0:01:55]}  dxc4 {[%clk 0:02:10]} 13. Bxc4 {[%clk 0:01:50]}  cxd4 {[%clk 0:02:06]} 14. Bb4 {[%clk 0:01:42]}  Rc8 {[%clk 0:01:45]} 15. Nxd4 {[%clk 0:01:26]}  Qg5 {[%clk 0:01:25]} 16. f4 {[%clk 0:01:21]}  Qg6 {[%clk 0:01:05]} 17. Bd3 {[%clk 0:01:19]}  Ndc5 {[%clk 0:01:00]} 18. Bxc5 {[%clk 0:01:07]}  bxc5 {[%clk 0:00:57]} 19. Nb5 {[%clk 0:01:07]}  Ba6 {[%clk 0:00:38]} 20. Bxe4 {[%clk 0:01:02]}  Bxb5 {[%clk 0:00:35]} 21. Qxb5+ {[%clk 0:01:01]} 1-0


[Site "https://www.chess.com"]

[Event "Titled Tuesday Blitz March 01 Early 2022"]
[White "Zavgorodniy, Sergiy"]
[Black "Li, Ben"]
[WhiteFideId "14110148"]
[BlackFideId "2089980"]
[WhiteElo "2420"]
[BlackElo "2267"]
[Result "1-0"]
[Round "06"]
[TimeControl "180+1"]
[Date "2022.03.01"]
[WhiteClock "0:00:43"]
[BlackClock "0:00:39"]

1. e4 {[%clk 0:03:00]}  c5 {[%clk 0:02:59]} 2. Nf3 {[%clk 0:02:59]}  d6 {[%clk 0:02:59]} 3. c3 {[%clk 0:02:58]}  Nf6 {[%clk 0:02:59]} 4. Bc4 {[%clk 0:02:58]}  Nxe4 {[%clk 0:02:56]} 5. Qa4+ {[%clk 0:02:57]}  Nc6 {[%clk 0:02:56]} 6. Bxf7+ {[%clk 0:02:56]}  Kxf7 {[%clk 0:02:57]} 7. Qxe4 {[%clk 0:02:56]}  g6 {[%clk 0:02:51]} 8. d4 {[%clk 0:02:55]}  Bf5 {[%clk 0:02:45]} 9. Qe2 {[%clk 0:02:52]}  cxd4 {[%clk 0:02:40]} 10. cxd4 {[%clk 0:02:52]}  Kg7 {[%clk 0:02:36]} 11. h3 {[%clk 0:02:47]}  Nb4 {[%clk 0:02:32]} 12. Bh6+ {[%clk 0:02:33]}  Kxh6 {[%clk 0:02:29]} 13. Qd2+ {[%clk 0:02:33]}  Kg7 {[%clk 0:02:29]} 14. Qxb4 {[%clk 0:02:32]}  h6 {[%clk 0:02:23]} 15. O-O {[%clk 0:02:31]}  Kh7 {[%clk 0:02:24]} 16. Re1 {[%clk 0:02:26]}  Qd7 {[%clk 0:02:20]} 17. Nh4 {[%clk 0:01:58]}  Be6 {[%clk 0:02:11]} 18. d5 {[%clk 0:01:44]}  Bxd5 {[%clk 0:02:02]} 19. Nc3 {[%clk 0:01:44]}  Bf7 {[%clk 0:02:02]} 20. Rad1 {[%clk 0:01:31]}  Bg7 {[%clk 0:02:01]} 21. Qe4 {[%clk 0:01:22]}  Rae8 {[%clk 0:01:55]} 22. Nd5 {[%clk 0:01:21]}  e5 {[%clk 0:01:24]} 23. Rd3 {[%clk 0:01:10]}  Rhg8 {[%clk 0:01:17]} 24. Rg3 {[%clk 0:01:07]}  Bh8 {[%clk 0:01:17]} 25. Ree3 {[%clk 0:01:07]}  Qc6 {[%clk 0:01:11]} 26. Rd3 {[%clk 0:01:04]}  Re6 {[%clk 0:00:52]} 27. Rc3 {[%clk 0:01:00]}  Qe8 {[%clk 0:00:48]} 28. Nc7 {[%clk 0:00:56]}  Qe7 {[%clk 0:00:49]} 29. Nxe6 {[%clk 0:00:55]}  Qxe6 {[%clk 0:00:50]} 30. Rc7 {[%clk 0:00:53]}  Rg7 {[%clk 0:00:46]} 31. Qxb7 {[%clk 0:00:51]}  d5 {[%clk 0:00:43]} 32. Re7 {[%clk 0:00:49]}  Qf6 {[%clk 0:00:42]} 33. Rf3 {[%clk 0:00:48]}  Qxh4 {[%clk 0:00:38]} 34. Rfxf7 {[%clk 0:00:48]}  Rxf7 {[%clk 0:00:38]} 35. Rxf7+ {[%clk 0:00:48]}  Kg8 {[%clk 0:00:39]} 36. Rc7 {[%clk 0:00:43]} 1-0


[Site "https://www.chess.com"]

[Event "Titled Tuesday Blitz March 01 Early 2022"]
[White "Zavivaeva, Emilia"]
[Black "Joubert, Dantelle"]
[WhiteFideId "34127531"]
[BlackFideId "14310813"]
[WhiteElo "1685"]
[BlackElo "1507"]
[Result "0-1"]
[Round "06"]
[TimeControl "180+1"]
[Date "2022.03.01"]
[WhiteClock "0:00:27"]
[BlackClock "0:00:58"]

1. e4 {[%clk 0:02:59]}  c5 {[%clk 0:02:56]} 2. c3 {[%clk 0:02:46]}  g6 {[%clk 0:02:51]} 3. d4 {[%clk 0:02:26]}  cxd4 {[%clk 0:02:46]} 4. cxd4 {[%clk 0:02:27]}  Bg7 {[%clk 0:02:44]} 5. Nf3 {[%clk 0:02:18]}  d5 {[%clk 0:02:42]} 6. exd5 {[%clk 0:02:08]}  Nf6 {[%clk 0:02:22]} 7. Nc3 {[%clk 0:02:06]}  Nxd5 {[%clk 0:02:11]} 8. Nxd5 {[%clk 0:01:59]}  Qxd5 {[%clk 0:02:08]} 9. Be3 {[%clk 0:01:53]}  O-O {[%clk 0:01:55]} 10. Be2 {[%clk 0:01:40]}  Nc6 {[%clk 0:01:39]} 11. O-O {[%clk 0:01:41]}  Bf5 {[%clk 0:01:33]} 12. Re1 {[%clk 0:01:20]}  Rfd8 {[%clk 0:01:30]} 13. Bd3 {[%clk 0:01:04]}  Bxd3 {[%clk 0:01:24]} 14. Qxd3 {[%clk 0:00:57]}  Ne5 {[%clk 0:01:18]} 15. Nxe5 {[%clk 0:00:47]}  Bxe5 {[%clk 0:01:19]} 16. Rad1 {[%clk 0:00:41]}  Qxa2 {[%clk 0:01:04]} 17. Qe4 {[%clk 0:00:27]}  Bf6 {[%clk 0:00:58]} 0-1


[Site "https://www.chess.com"]

[Event "Titled Tuesday Blitz March 01 Early 2022"]
[White "Abdyzhapar, Asylbek"]
[Black "Omelja, Artem"]
[WhiteFideId "13800337"]
[BlackFideId "14119846"]
[WhiteElo "2331"]
[BlackElo "2418"]
[Result "1-0"]
[Round "07"]
[TimeControl "180+1"]
[Date "2022.03.01"]
[WhiteClock "0:01:46"]
[BlackClock "0:00:05"]

1. d4 {[%clk 0:03:00]}  d5 {[%clk 0:02:58]} 2. Bf4 {[%clk 0:03:00]}  Nf6 {[%clk 0:02:57]} 3. e3 {[%clk 0:03:01]}  c5 {[%clk 0:02:55]} 4. c3 {[%clk 0:03:01]}  Nc6 {[%clk 0:02:55]} 5. Nd2 {[%clk 0:03:00]}  Bf5 {[%clk 0:02:45]} 6. Qb3 {[%clk 0:03:00]}  Qc8 {[%clk 0:02:34]} 7. dxc5 {[%clk 0:03:00]}  e6 {[%clk 0:02:32]} 8. Ngf3 {[%clk 0:02:59]}  Bxc5 {[%clk 0:02:30]} 9. h3 {[%clk 0:02:59]}  O-O {[%clk 0:02:29]} 10. Nh4 {[%clk 0:02:58]}  Be4 {[%clk 0:02:23]} 11. Nxe4 {[%clk 0:02:54]}  dxe4 {[%clk 0:02:23]} 12. g4 {[%clk 0:02:53]}  Nd5 {[%clk 0:02:19]} 13. Bg3 {[%clk 0:02:51]}  a6 {[%clk 0:01:45]} 14. Be2 {[%clk 0:02:41]}  b5 {[%clk 0:01:41]} 15. Qc2 {[%clk 0:02:40]}  f5 {[%clk 0:01:29]} 16. gxf5 {[%clk 0:02:39]}  exf5 {[%clk 0:01:30]} 17. Qb3 {[%clk 0:02:38]}  Qe6 {[%clk 0:01:26]} 18. Rd1 {[%clk 0:02:37]}  Rad8 {[%clk 0:01:14]} 19. Ng2 {[%clk 0:02:36]}  Qf7 {[%clk 0:01:04]} 20. h4 {[%clk 0:02:32]}  Kh8 {[%clk 0:00:58]} 21. h5 {[%clk 0:02:31]}  Na5 {[%clk 0:00:45]} 22. Qc2 {[%clk 0:02:30]}  Nc4 {[%clk 0:00:38]} 23. b3 {[%clk 0:02:29]}  Ncb6 {[%clk 0:00:31]} 24. O-O {[%clk 0:02:13]}  Nf6 {[%clk 0:00:24]} 25. Nf4 {[%clk 0:02:10]}  Bd6 {[%clk 0:00:17]} 26. Rxd6 {[%clk 0:02:09]}  Rxd6 {[%clk 0:00:16]} 27. Ng6+ {[%clk 0:02:09]}  hxg6 {[%clk 0:00:16]} 28. Bxd6 {[%clk 0:02:09]}  Rd8 {[%clk 0:00:17]} 29. hxg6 {[%clk 0:02:04]}  Qxg6+ {[%clk 0:00:17]} 30. Bg3 {[%clk 0:02:05]}  Nbd5 {[%clk 0:00:14]} 31. c4 {[%clk 0:01:58]}  Nxe3 {[%clk 0:00:13]} 32. Qc3 {[%clk 0:01:56]}  Nxf1 {[%clk 0:00:12]} 33. Kxf1 {[%clk 0:01:56]}  bxc4 {[%clk 0:00:11]} 34. bxc4 {[%clk 0:01:56]}  Nh5 {[%clk 0:00:09]} 35. Be5 {[%clk 0:01:55]}  Nf6 {[%clk 0:00:05]} 36. c5 {[%clk 0:01:54]}  Qf7 {[%clk 0:00:05]} 37. c6 {[%clk 0:01:53]}  Qe6 {[%clk 0:00:05]} 38. c7 {[%clk 0:01:52]}  Rc8 {[%clk 0:00:05]} 39. Bc4 {[%clk 0:01:50]}  Nd5 {[%clk 0:00:05]} 40. Qh3+ {[%clk 0:01:48]}  Kg8 {[%clk 0:00:04]} 41. Qg3 {[%clk 0:01:47]}  g6 {[%clk 0:00:02]} 42. Bxd5 {[%clk 0:01:46]}  Qxd5 {[%clk 0:00:03]} 43. Qxg6+ {[%clk 0:01:46]}  Kf8 {[%clk 0:00:04]} 44. Bd6+ {[%clk 0:01:46]}  Qxd6 {[%clk 0:00:02]} 45. Qxd6+ {[%clk 0:01:46]}  Kf7 {[%clk 0:00:03]} 46. Qd7+ {[%clk 0:01:46]}  Kf6 {[%clk 0:00:04]} 47. Qxc8 {[%clk 0:01:46]}  Ke5 {[%clk 0:00:05]} 1-0


[Site "https://www.chess.com"]